bitfinex-derivatives/quotes_ETHF0:USTF0_20250926
["timestamp","ask_amount","ask_price","bid_price","bid_amount"]
[1758864526012,0.3335,3958.6,3958.5,0.45444]
[1758864526311,1.09461891,3958.6,3958.5,1.22097804]
[1758864526516,1.09461891,3958.6,3958.5,1.35447804]
[1758864526517,0.76111891,3958.6,3958.5,1.35447804]
[1758864526814,1.09461891,3958.6,3958.5,1.35447804]
[1758864533420,0.5501,3958.6,3958.5,1.35447804]
[1758864533723,1.09367614,3958.6,3958.5,1.35447804]
[1758864534114,0.5501,3958.6,3958.5,1.35447804]
[1758864534321,0.7661,3958.6,3958.5,1.35447804]
[1758864535020,4.1276,3959.0,3958.9,0.4544]
[1758864535321,6.06139332,3959.0,3958.9,0.47893804]
[1758864536822,2.85359332,3959.0,3958.9,0.47893804]
[1758864538523,2.82839332,3959.0,3958.9,0.47893804]
[1758864541140,2.82839332,3959.0,3958.9,0.69083804]
[1758864541615,6.03619332,3959.0,3958.9,0.02453804]
[1758864543243,6.03619332,3959.0,3958.9,0.23643804]
[1758864543628,2.82839332,3959.0,3958.9,0.23643804]
[1758864543923,2.82839332,3959.0,3958.9,0.02453804]
[1758864547324,1.43804286,3959.0,3958.9,0.02453804]
[1758864549831,2.82839332,3959.0,3958.9,0.02453804]
[1758864550329,2.82839332,3959.0,3958.9,0.57583804]
[1758864550528,2.82839332,3959.0,3958.9,0.25213804]
[1758864551535,2.82839332,3959.0,3958.9,0.57583804]
[1758864551830,2.82839332,3959.0,3958.9,0.02453804]
[1758864553924,4.21874378,3959.0,3958.9,0.02453804]
[1758864554229,7.42654378,3959.0,3958.9,0.02453804]
[1758864555325,0.3418,3958.9,3958.0,0.45449]
[1758864555527,0.789,3957.9,3957.8,0.45452]
[1758864555727,2.72279332,3957.9,3957.8,0.89912]
[1758864556025,1.33244286,3957.9,3957.8,1.43932]
[1758864556727,0.54344286,3957.9,3957.8,6.43932]
[1758864556931,1.4651371,3958.3,3957.8,6.43932]
[1758864556932,0.789,3958.3,3958.2,0.2276]
[1758864557131,1.3337776,3958.3,3958.0,0.45449]
[1758864557329,0.8865776,3958.2,3958.1,0.256]
[1758864557629,1.3337776,3958.2,3958.1,0.4836]
[1758864558027,2.4571147,3958.2,3958.1,0.2276]
[1758864558223,2.4571147,3958.2,3958.1,0.8073]
[1758864559629,2.4571147,3958.2,3958.1,0.5513]
[1758864559834,2.4571147,3958.2,3958.1,0.8073]
[1758864560929,2.4571147,3958.2,3958.1,1.0238]
[1758864561135,2.1153147,3958.2,3958.1,1.0238]
[1758864561734,2.4571147,3958.2,3958.1,1.0238]
[1758864566549,0.9158,3958.0,3957.9,0.4545]
[1758864566741,2.5839147,3958.0,3957.9,0.7105]
[1758864567651,2.5839147,3958.0,3957.9,0.9381]
[1758864567848,2.5839147,3958.0,3957.9,0.7105]
[1758864568052,2.5839147,3958.0,3957.9,1.4783]
[1758864568254,2.0391371,3958.0,3957.9,1.4783]
[1758864571354,2.58338338,3958.0,3957.9,1.4783]
[1758864574055,2.45658338,3958.0,3957.9,1.4783]
[1758864574953,1.09884628,3958.0,3957.9,1.4783]
[1758864575147,2.22218338,3958.0,3957.9,1.4783]
[1758864575345,2.44058338,3958.0,3957.9,1.4783]
[1758864583363,2.56658338,3958.0,3957.9,1.4783]
[1758864584559,2.56658338,3958.0,3957.9,0.9381]
[1758864584761,0.4352,3957.8,3957.7,0.45453]
[1758864584961,1.8963371,3957.8,3957.7,0.70953]
[1758864585164,2.44058338,3957.8,3957.7,1.25603]
[1758864589266,2.44058338,3957.8,3957.7,0.70953]
[1758864589970,2.44058338,3957.8,3957.7,1.25603]
[1758864593274,2.44058338,3957.8,3957.7,1.47953]
[1758864594671,2.44058338,3957.8,3957.7,0.70953]
[1758864596175,2.44058338,3957.8,3957.7,1.47953]
[1758864596176,1.8963371,3957.8,3957.7,1.47953]
[1758864596770,0.0252,3957.9,3957.8,0.3207]
[1758864597075,0.0252,3957.9,3957.8,0.77]
[1758864597379,0.5798,3957.9,3957.8,0.77]
[1758864597575,1.12264019,3957.9,3957.8,0.77]
[1758864598578,1.34104019,3957.9,3957.8,0.77]
[1758864598878,2.46437729,3957.9,3957.8,0.77]
[1758864599272,2.46437729,3957.9,3957.8,0.5465]
[1758864599978,1.34104019,3957.9,3957.8,0.77]
[1758864600172,0.56804019,3957.9,3957.8,0.77]
[1758864600378,0.5368,3958.6,3958.5,0.5628]
[1758864600574,0.5368,3958.6,3958.5,2.7316771]
[1758864600976,0.5368,3958.6,3958.5,1.60834]
[1758864601370,0.7513,3958.8,3958.7,0.5599]
[1758864601576,1.8746371,3958.8,3958.7,0.255]
[1758864601775,0.7513,3958.4,3958.3,0.45445]
[1758864601976,0.7513,3958.4,3958.0,3.2078]
[1758864601977,0.3161,3958.1,3958.0,3.2078]
[1758864602177,1.8746371,3958.1,3958.0,3.2078]
[1758864602476,1.8746371,3958.1,3958.0,3.4628]
[1758864602674,0.4352,3957.7,3957.6,3.2078]
[1758864602882,1.8746371,3957.7,3957.6,3.4628]
[1758864603382,0.7513,3957.7,3957.6,5.3593371]
[1758864603878,0.7513,3957.7,3957.6,4.236]
[1758864604078,1.8746371,3957.7,3957.6,4.236]
[1758864604783,1.8746371,3957.7,3957.6,3.4628]
[1758864604989,1.8746371,3957.7,3957.6,4.0085]
[1758864605177,0.213,3958.0,3957.9,0.45451]
[1758864605378,0.2382,3958.4,3958.3,1.21286]
[1758864605585,0.5748,3958.4,3958.3,2.5911971]
[1758864605780,0.7858,3958.4,3958.3,1.46786]
[1758864605980,0.7606,3958.4,3958.3,1.46786]
[1758864606282,1.8839371,3958.4,3958.3,0.255]
[1758864606499,1.5473371,3958.4,3958.3,0.255]
[1758864606888,1.5473371,3958.4,3957.9,0.45451]
[1758864607078,1.2514371,3958.5,3957.7,0.45453]
[1758864607079,0.424,3957.8,3957.7,0.45453]
[1758864607281,1.8839371,3957.8,3957.7,0.70953]
[1758864608086,1.8839371,3957.8,3957.7,1.46793]
[1758864608583,1.8839371,3957.8,3957.7,0.255]
[1758864609184,1.8839371,3957.8,3957.7,0.4745]
[1758864610988,1.8839371,3957.8,3957.7,0.255]
[1758864612388,2.42568916,3957.8,3957.7,0.255]
[1758864614483,3.54902626,3957.8,3957.7,0.255]
[1758864614794,8.54902626,3957.8,3957.7,0.255]
[1758864615287,7.42568916,3957.8,3957.7,0.255]
[1758864615487,8.54902626,3957.8,3957.7,0.255]
[1758864615993,0.3366,3957.2,3956.8,3.66244]
[1758864616287,1.8839371,3956.9,3956.8,3.2078]
[1758864616487,0.8887,3956.5,3956.4,3.2078]
[1758864616689,2.55368987,3956.5,3956.4,3.4628]
[1758864617183,0.7606,3956.1,3956.0,3.2078]
[1758864617494,0.7606,3956.1,3956.0,3.4628]
[1758864617682,0.213,3955.6,3955.5,3.2078]
[1758864617891,0.7606,3955.6,3955.5,4.8056371]
[1758864618387,0.7606,3955.6,3955.5,3.6823]
[1758864619081,0.213,3956.1,3956.0,0.66742]
[1758864619282,0.7606,3956.1,3956.0,2.07898331]
[1758864619487,0.7606,3956.1,3956.0,0.4745]
[1758864620796,0.7606,3956.1,3956.0,2.40518331]
[1758864621290,0.3366,3956.4,3956.3,0.45468]
[1758864621497,0.5496,3956.4,3956.3,2.85986331]
[1758864622795,0.7606,3956.4,3956.3,2.85986331]
[1758864623986,0.7606,3956.4,3956.3,1.46808]
[1758864625190,5.36018331,3956.4,3956.3,0.255]
[1758864626097,0.7606,3956.4,3956.3,0.4745]
[1758864626290,0.7606,3956.4,3956.3,1.0134]
[1758864626489,0.7606,3956.4,3956.3,2.40518331]
[1758864626800,0.7606,3956.4,3956.3,1.0134]
[1758864627099,0.7606,3956.4,3956.3,0.6872]
[1758864627896,0.7606,3956.4,3956.3,0.4745]
[1758864628097,0.7606,3956.4,3956.3,0.255]
[1758864628996,0.7606,3956.4,3956.0,0.45472]
[1758864628997,2.15238331,3956.4,3956.0,0.45472]
[1758864629199,0.424,3956.1,3956.0,0.70972]
[1758864629497,0.7606,3956.1,3956.0,0.92922]
[1758864630202,0.7606,3956.1,3956.0,2.89710331]
[1758864631989,3.2078,3956.4,3956.0,2.56938331]
[1758864632188,0.3246,3956.5,3956.3,0.89349]
[1758864632393,0.5463,3956.5,3956.4,2.43218331]
[1758864633289,0.7595,3956.5,3956.4,1.0404]
[1758864633803,0.8955,3956.5,3956.4,1.0404]
[1758864634000,0.8955,3956.5,3956.4,0.256]
[1758864634200,0.5709,3956.5,3956.0,4.00812]
[1758864634395,0.7595,3956.2,3956.1,0.4643]
[1758864634596,0.7595,3956.2,3956.1,1.0404]
[1758864636810,0.7595,3956.2,3956.1,1.0394]
[1758864639006,0.4349,3955.9,3955.8,0.5539]
[1758864639303,0.7595,3955.9,3955.8,0.255]
[1758864639603,0.7595,3955.9,3955.5,3.5534]
[1758864639604,0.4349,3955.9,3955.5,3.66257]
[1758864639801,0.4349,3955.7,3955.6,0.4643]
[1758864640004,0.7595,3955.7,3955.6,0.4643]
[1758864640206,0.7595,3955.7,3955.6,0.8099]
[1758864642207,0.4606,3956.0,3955.7,0.45476]
[1758864642395,0.7595,3956.0,3955.9,0.7844]
[1758864642601,1.30130055,3956.0,3955.9,0.7844]
[1758864643112,1.43730055,3956.0,3955.9,0.2083]
[1758864643410,0.7595,3955.7,3955.6,1.0404]
[1758864644207,1.30198005,3955.7,3955.6,1.0404]
[1758864645398,0.76418005,3955.7,3955.6,1.0404]
[1758864646600,1.08878005,3955.7,3955.6,1.0404]
[1758864647412,1.30198005,3955.7,3955.6,1.0404]
[1758864648211,1.30198005,3955.7,3955.6,0.4643]
[1758864648611,1.30198005,3955.7,3955.6,0.8099]
[1758864648816,1.30198005,3955.7,3955.6,1.0404]
[1758864651814,2.69376336,3955.7,3955.6,0.256]
[1758864653318,2.69376336,3955.7,3955.6,0.4643]
[1758864653517,1.30198005,3955.7,3955.6,1.0404]
[1758864653816,1.08878005,3955.7,3955.6,1.0404]
[1758864654114,1.30198005,3955.7,3955.6,1.0404]
[1758864657411,1.08878005,3955.7,3955.6,1.0404]
[1758864657616,0.54248005,3955.7,3955.6,1.0404]
[1758864657921,1.30198005,3955.7,3955.6,1.0404]
[1758864660414,0.54248005,3955.7,3955.6,4.2482]
[1758864660717,4.59958331,3956.6,3956.0,0.883]
[1758864660718,0.0252,3956.1,3956.0,0.883]
[1758864660921,0.7907,3956.1,3956.0,1.45622]
[1758864661219,1.33338401,3956.1,3956.0,1.45622]
[1758864662119,0.56788401,3956.1,3956.0,1.59372]
[1758864662422,0.56788401,3956.1,3956.0,2.98550331]
[1758864662725,2.72516732,3956.1,3956.0,0.256]
[1758864662927,0.7655,3955.8,3955.6,0.45476]
[1758864663231,1.30830037,3955.7,3955.6,0.2089]
[1758864663422,1.30830037,3955.7,3955.4,0.3171]
[1758864663619,0.7655,3955.4,3955.3,0.2089]
[1758864663926,1.30830037,3955.4,3955.3,0.256]
[1758864665421,1.30830037,3955.4,3955.2,3.2078]
[1758864665625,0.3286,3955.2,3955.0,0.71084]
[1758864665824,1.31860037,3955.1,3955.0,0.71084]
[1758864666225,1.31860037,3955.1,3955.0,0.94164]
[1758864668729,1.31860037,3955.1,3955.0,1.25784]
[1758864669719,1.31860037,3955.1,3955.0,2.86102331]
[1758864669927,0.5574,3955.4,3955.3,1.21321]
[1758864670129,0.54298235,3955.4,3955.3,2.60499331]
[1758864670931,0.3286,3956.0,3955.9,0.45474]
[1758864671223,1.51788331,3956.5,3956.0,0.7584]
[1758864671224,0.5826,3956.1,3956.0,0.7584]
[1758864671429,1.12544415,3956.1,3956.0,0.7584]
[1758864671624,1.34384415,3956.1,3956.0,0.7584]
[1758864672029,0.79684415,3956.1,3956.0,0.8838]
[1758864672433,1.12544415,3956.1,3956.0,0.8838]
[1758864672843,1.34384415,3956.1,3956.0,0.7584]
[1758864673040,1.34384415,3956.1,3956.0,0.4868]
[1758864673238,1.34384415,3956.1,3956.0,1.0144]
[1758864674142,1.34384415,3956.1,3956.0,0.2308]
[1758864674342,1.34384415,3956.1,3956.0,0.4868]
[1758864674532,1.34384415,3956.1,3955.9,0.45473]
[1758864674728,0.7758,3955.9,3955.8,0.256]
[1758864674943,2.71042746,3955.9,3955.8,0.256]
[1758864676544,2.71042746,3955.9,3955.8,0.4868]
[1758864679444,2.71042746,3955.9,3955.4,0.256]
[1758864679639,0.9137,3955.5,3955.4,0.71079]
[1758864679945,1.45654415,3955.5,3955.4,0.71079]
[1758864680240,1.12794415,3955.5,3955.2,0.45481]
[1758864680441,2.16758331,3955.3,3955.2,0.45481]
[1758864680639,2.16758331,3955.3,3955.1,3.2078]
[1758864680640,0.7758,3955.2,3955.1,3.2078]
[1758864680848,1.31864415,3955.2,3955.1,3.2078]
[1758864681144,2.44373049,3955.2,3955.1,3.2078]
[1758864681539,1.31864415,3955.2,3955.1,3.2078]
[1758864683646,0.99004415,3955.2,3955.0,0.45483]
[1758864683839,2.44373049,3955.1,3955.0,0.45483]
[1758864684249,2.44373049,3955.1,3955.0,0.68563]
[1758864685745,1.31864415,3955.1,3955.0,1.21323]
[1758864685940,3.2078,3955.5,3955.4,1.21319]
[1758864686145,3.75043736,3955.5,3955.4,2.59427634]
[1758864686445,3.97923736,3955.5,3955.4,2.59427634]
[1758864686645,4.30783736,3955.5,3955.4,2.59427634]
[1758864687050,4.30783736,3955.5,3955.4,1.46919]
[1758864687945,1.45633736,3955.5,3955.4,0.256]
[1758864689854,1.45633736,3955.5,3955.3,0.4548]
[1758864690054,2.4435237,3955.4,3955.3,0.4548]
[1758864693754,0.54263736,3955.4,3955.3,1.2143]
[1758864694548,1.69608634,3955.7,3955.6,0.45477]
[1758864694754,0.78675239,3955.7,3955.6,1.21427]
[1758864695053,0.56775239,3955.7,3955.6,2.33935634]
[1758864695860,2.46593873,3955.7,3955.6,1.21427]
[1758864696851,0.78675239,3955.7,3955.6,1.21427]
[1758864697059,0.56775239,3955.7,3955.6,1.21427]
[1758864697266,1.91183873,3955.7,3955.6,1.21427]
[1758864697960,0.78675239,3955.7,3955.6,1.21427]
[1758864698560,0.1301,3955.5,3955.3,41.1117]
[1758864698777,0.9032,3955.0,3954.9,0.98515]
[1758864698957,2.02828634,3955.0,3954.9,0.98515]
[1758864699161,2.02828634,3955.0,3954.9,1.24115]
[1758864699354,2.02828634,3955.0,3954.9,0.92945]
[1758864699558,2.57091086,3955.0,3954.9,0.92945]
[1758864700262,2.57091086,3955.0,3954.9,0.71085]
[1758864700453,2.57091086,3955.0,3954.9,0.256]
[1758864700952,0.4463,3954.8,3954.7,0.45487]
[1758864701156,2.44081086,3954.8,3954.7,0.45487]
[1758864701552,0.7731,3954.8,3954.7,1.21437]
[1758864701757,0.7731,3954.8,3954.6,1.12508634]
[1758864701758,0.219,3955.1,3955.0,1.34874]
[1758864701956,0.76152603,3955.1,3955.0,1.34874]
[1758864702155,1.31562603,3955.1,3955.0,0.45484]
[1758864702368,0.7731,3954.9,3954.8,0.92946]
[1758864702568,2.44071237,3954.9,3954.8,1.15866]
[1758864702871,2.44071237,3954.9,3954.8,1.47036]
[1758864705776,2.44071237,3954.9,3954.3,0.3117]
[1758864706073,1.89818634,3954.5,3954.4,1.47041]
[1758864707163,0.7731,3954.5,3954.4,1.47041]
[1758864708961,0.9032,3954.5,3954.4,1.47041]
[1758864710878,2.57130335,3954.5,3954.4,0.71091]
[1758864711172,1.44621701,3954.5,3954.4,0.71091]
[1758864712372,1.44621701,3954.5,3954.4,0.256]
[1758864713573,2.57130335,3954.5,3954.4,0.256]
[1758864713783,0.3268,3954.4,3954.0,0.45495]
[1758864713977,0.7731,3954.1,3953.8,3.97447]
[1758864714276,1.89818634,3953.9,3953.8,3.2078]
[1758864714471,1.89818634,3953.9,3953.8,3.4638]
[1758864715071,2.44090577,3953.9,3953.8,3.4638]
[1758864715282,1.89818634,3953.9,3953.8,3.4638]
[1758864715574,2.44116182,3953.9,3953.8,3.4638]
[1758864716174,1.89818634,3953.9,3953.8,3.4638]
[1758864716771,2.44099777,3953.9,3953.8,0.256]
[1758864717673,3.56608411,3953.9,3953.1,0.3117]
[1758864717875,1.57138634,3953.2,3953.0,0.256]
[1758864718076,1.89818634,3953.1,3953.0,0.4746]
[1758864718274,1.89818634,3953.1,3953.0,1.1499]
[1758864718569,1.57138634,3953.1,3953.0,1.1499]
[1758864718777,1.12508634,3953.3,3953.2,0.7595]
[1758864719072,1.67088634,3953.3,3953.2,0.7595]
[1758864719272,1.89818634,3953.3,3953.2,0.7595]
[1758864720176,1.67088634,3953.3,3953.2,0.7595]
[1758864720377,1.67628634,3953.7,3953.6,0.7577]
[1758864720576,2.21842638,3953.7,3953.6,0.7577]
[1758864721079,2.43792638,3953.7,3953.6,0.7577]
[1758864721289,2.43792638,3953.7,3953.6,0.4304]
[1758864721477,2.43792638,3953.7,3953.6,0.2206]
[1758864722179,2.43792638,3953.7,3953.6,0.5479]
[1758864722878,2.43792638,3953.7,3953.5,0.45501]
[1758864723073,0.7707,3953.6,3953.5,0.45501]
[1758864723379,1.89578634,3953.6,3953.5,0.45501]
[1758864724079,1.89578634,3953.6,3953.5,0.67561]
[1758864724278,0.7707,3953.6,3953.5,0.67561]
[1758864724581,0.7707,3953.6,3953.5,1.22511]
[1758864727570,1.89578634,3953.6,3953.5,0.67561]
[1758864728379,2.43785306,3953.6,3953.5,0.45501]
[1758864732681,2.43785306,3953.6,3953.5,0.66451]
[1758864732887,1.31276672,3953.6,3953.5,1.21401]
[1758864733086,2.43785306,3953.6,3953.5,1.21401]
[1758864733684,0.7707,3953.6,3953.5,1.21401]
[1758864734185,1.31304132,3953.6,3953.5,1.21401]
[1758864734895,0.7707,3953.6,3953.5,1.21401]
[1758864735186,1.31313228,3953.6,3953.5,1.21401]
[1758864735785,2.43821862,3953.6,3953.4,0.45502]
[1758864735983,0.4318,3953.3,3953.2,0.45504]
[1758864736185,1.87378634,3953.3,3953.2,0.45504]
[1758864736892,1.55688634,3953.3,3953.0,0.45507]
[1758864737088,0.7487,3953.1,3953.0,0.99267]
[1758864737783,0.7487,3953.1,3953.0,0.66457]
[1758864738095,1.87378634,3953.1,3953.0,0.66457]
[1758864738588,0.8743,3953.0,3952.9,0.0252982]
[1758864738786,1.41725269,3953.0,3952.9,0.0252982]
[1758864740087,1.41725269,3953.0,3952.9,0.5628982]
[1758864740689,2.81103218,3953.0,3952.9,0.5628982]
[1758864745686,2.81103218,3953.0,3952.9,0.2347982]
[1758864746590,2.81103218,3953.0,3952.9,0.7842982]
[1758864746790,2.68543218,3953.0,3952.9,0.7842982]
[1758864747890,2.46453218,3953.0,3952.9,0.7842982]
[1758864748088,2.68543218,3953.0,3952.9,0.7842982]
[1758864748291,2.81103218,3953.0,3952.9,0.0252982]
[1758864748485,2.81103218,3953.0,3952.9,0.5628982]
[1758864748890,2.81103218,3953.0,3952.9,0.7842982]
[1758864749687,2.68543218,3953.0,3952.9,0.7842982]
[1758864752296,0.0252,3953.1,3953.0,0.45507]
[1758864752496,0.0252,3953.1,3953.0,1.34987]
[1758864754791,0.5362,3953.9,3953.8,0.45498]
[1758864754989,2.47426526,3953.9,3953.8,1.22028]
[1758864755188,2.70396526,3953.9,3953.8,1.22028]
[1758864756089,2.70396526,3953.9,3953.7,0.256]
[1758864756296,1.31018577,3953.8,3953.7,0.256]
[1758864756485,1.31018577,3953.8,3953.7,0.4662]
[1758864756895,1.31018577,3953.8,3953.7,1.0213]
[1758864757289,1.31018577,3953.8,3953.7,4.2291]
[1758864757486,1.31018577,3953.8,3953.7,1.0213]
[1758864758991,1.31018577,3953.8,3953.7,0.5551]
[1758864759198,1.31018577,3953.8,3953.7,0.7653]
[1758864760599,1.31018577,3953.8,3953.7,3.9731]
[1758864763200,1.31018577,3953.8,3953.7,0.7653]
[1758864767293,0.76688577,3953.8,3953.7,0.7653]
[1758864767595,0.76688577,3953.8,3953.6,0.71099]
[1758864767596,2.15967949,3954.1,3954.0,1.22026]
[1758864767798,2.15967949,3954.1,3954.0,0.92116]
[1758864767799,2.70319579,3954.1,3954.0,0.92116]
[1758864768001,2.70319579,3954.1,3954.0,0.71096]
[1758864768700,2.70319579,3954.1,3954.0,0.45496]
[1758864769003,2.70319579,3954.1,3954.0,0.71096]
[1758864775910,2.70319579,3954.1,3954.0,1.47626]
[1758864776505,2.70319579,3954.1,3954.0,1.0213]
[1758864776705,2.70319579,3954.1,3954.0,0.256]
[1758864776905,2.70319579,3954.1,3953.6,1.0026]
[1758864776906,0.4523,3953.7,3953.6,1.0026]
[1758864777109,2.15967949,3953.7,3953.6,0.9212]
[1758864777302,2.70319579,3953.7,3953.6,0.455]
[1758864778105,0.7659,3953.3,3953.2,0.45505]
[1758864778307,2.70319579,3953.3,3953.2,0.45505]
[1758864779508,1.3094163,3953.3,3953.2,0.45505]
[1758864780013,0.7659,3953.1,3953.0,1.25867]
[1758864780215,2.70319579,3953.1,3953.0,1.25867]
[1758864780412,2.47349579,3953.1,3953.0,1.47637]
[1758864780609,0.569,3953.5,3953.4,1.22933]
[1758864780802,1.1139927,3953.5,3953.0,1.05506]
[1758864781113,0.7537,3953.1,3953.0,0.92006]
[1758864781415,1.2986927,3953.1,3953.0,0.465]
[1758864781914,2.69247219,3953.1,3953.0,0.465]
[1758864782101,2.69247219,3953.1,3953.0,0.256]
[1758864782310,0.5586,3953.0,3952.9,0.0252982]
[1758864782508,1.4253927,3953.0,3952.9,0.0252982]
[1758864784021,2.69247219,3953.0,3952.9,1.2546782]
[1758864785710,0.56,3953.4,3953.3,0.45504]
[1758864785916,2.72432587,3953.4,3953.3,1.22864]
[1758864786416,2.72432587,3953.4,3953.3,0.68164]
[1758864786613,4.11810536,3953.4,3952.9,0.0252982]
[1758864786814,2.31827949,3953.0,3952.9,0.0252982]
[1758864787019,2.86286154,3953.0,3952.9,0.0252982]
[1758864787213,3.31793154,3953.0,3952.9,0.0252982]
[1758864787617,2.86286154,3953.0,3952.9,0.0252982]
[1758864787818,0.99488205,3953.0,3952.9,1.2539782]
[1758864788418,1.33058205,3953.0,3952.9,1.2539782]
[1758864788722,1.46908205,3953.0,3952.9,0.7988982]
[1758864788922,1.46908205,3953.0,3952.9,0.0252982]
[1758864792922,1.46908205,3953.0,3952.9,0.2518982]
[1758864793127,1.46908205,3953.0,3952.9,0.7988982]
[1758864795527,1.46908205,3953.0,3952.9,0.2518982]
[1758864795729,1.46908205,3953.0,3952.9,0.0252982]
[1758864797033,1.33058205,3953.0,3952.9,0.7988982]
[1758864797731,1.46908205,3953.0,3952.9,0.0252982]
[1758864797932,1.46908205,3953.0,3952.9,0.2518982]
[1758864799228,1.46908205,3953.0,3952.9,0.5703982]
[1758864801231,1.46908205,3953.0,3952.9,0.2518982]
[1758864801435,1.46908205,3953.0,3952.9,0.0252982]
[1758864802538,2.5954429,3953.0,3952.9,0.0252982]
[1758864802739,3.72180375,3953.0,3952.9,0.0252982]
[1758864803132,2.5954429,3953.0,3952.9,0.0252982]
[1758864804639,0.5888,3952.5,3952.4,0.45513]
[1758864804837,0.4503,3952.3,3952.2,3.91896]
[1758864805136,1.91236085,3952.3,3952.2,1.16626]
[1758864805338,1.91236085,3952.3,3952.2,1.48476]
[1758864806236,2.45849237,3952.3,3952.2,1.48476]
[1758864806638,2.45849237,3952.3,3952.2,4.69256]
[1758864806838,1.91236085,3952.3,3952.2,1.48476]
[1758864807139,2.45844508,3952.3,3952.2,0.256]
[1758864807342,2.45844508,3952.3,3952.0,0.68178]
[1758864807343,0.4503,3952.1,3952.0,0.68178]
[1758864807533,1.91236085,3952.1,3952.0,0.93778]
[1758864807733,2.45857228,3952.1,3952.0,0.256]
[1758864807940,3.58493313,3952.1,3952.0,0.256]
[1758864808332,3.58493313,3952.1,3951.8,3.2078]
[1758864808333,0.4503,3951.9,3951.8,3.2078]
[1758864808534,2.45857228,3951.9,3951.8,3.2078]
[1758864808737,2.45857228,3951.9,3951.8,3.66301]
[1758864810449,2.45857228,3951.9,3951.8,3.88961]
[1758864812149,2.45857228,3951.9,3951.8,4.22131]
[1758864812549,2.45857228,3951.9,3951.8,3.4165]
[1758864812850,2.45857228,3951.9,3951.8,3.7482]
[1758864814246,2.45857228,3951.9,3951.8,3.2078]
[1758864814551,2.45857228,3951.9,3951.8,3.4165]
[1758864814747,2.45857228,3951.9,3951.8,3.7482]
[1758864815644,2.45857228,3951.9,3951.8,0.2087]
[1758864816354,2.45857228,3951.9,3951.7,0.256]
[1758864816647,1.29621143,3951.8,3951.7,0.256]
[1758864816854,1.29621143,3951.8,3951.6,0.45523]
[1758864817049,0.75,3951.8,3951.7,0.256]
[1758864817250,1.75063761,3951.8,3951.4,0.45525]
[1758864817441,0.8849,3951.5,3951.4,0.2087]
[1758864817641,0.8849,3951.5,3951.4,0.4647]
[1758864817851,1.4302709,3951.5,3951.4,0.4647]
[1758864818250,2.55663175,3951.5,3951.4,0.4647]
[1758864819150,2.55663175,3951.5,3951.4,0.256]
[1758864819752,0.5583,3951.0,3950.9,3.8718]
[1758864819955,0.5583,3951.0,3950.9,4.4595]
[1758864819956,2.01126085,3951.0,3950.9,4.4595]
[1758864820147,2.01126085,3951.0,3950.9,4.0042]
[1758864821058,2.01126085,3951.0,3950.9,3.6725]
[1758864821258,2.01126085,3951.0,3950.9,3.4638]
[1758864822160,2.01126085,3951.0,3950.9,0.256]
[1758864822459,0.75,3950.7,3950.6,0.4647]
[1758864822660,1.87636085,3950.7,3950.6,0.256]
[1758864823361,1.87636085,3950.7,3950.6,0.4647]
[1758864825062,1.87636085,3950.7,3950.6,0.256]
[1758864825556,1.87636085,3950.7,3950.6,0.4647]
[1758864826153,1.87636085,3950.7,3950.6,1.0129]
[1758864830669,0.21,3951.0,3950.9,0.4252]
[1758864830969,1.66296085,3951.0,3950.9,1.0129]
[1758864831269,1.87636085,3951.0,3950.9,1.0129]
[1758864831767,2.01126085,3951.0,3950.9,0.7569]
[1758864832066,2.01126085,3951.0,3950.9,1.0129]
[1758864832262,1.87636085,3951.0,3950.9,1.0129]
[1758864832660,1.12636085,3951.2,3951.1,0.4252]
[1758864832864,0.3266,3951.4,3951.2,0.88048]
[1758864832865,0.21,3951.3,3951.2,0.88048]
[1758864833069,1.33636085,3951.3,3951.2,1.21218]
[1758864833270,1.66296085,3951.3,3951.2,1.21218]
[1758864833464,1.33636085,3951.3,3951.2,1.21218]
[1758864833669,1.12636085,3951.3,3951.2,4.41998]
[1758864833964,0.3266,3951.6,3951.4,0.7569]
[1758864833965,1.12636085,3951.5,3951.4,0.7569]
[1758864834158,0.5619,3951.8,3951.7,0.4252]
[1758864834355,1.68826085,3951.8,3951.7,1.46812]
[1758864834571,1.36166085,3951.8,3951.7,1.46812]
[1758864835166,1.68826085,3951.8,3951.7,1.46812]
[1758864835374,1.87636085,3951.8,3951.7,1.0129]
[1758864835569,1.87636085,3951.8,3951.7,0.256]
[1758864835768,1.87636085,3951.8,3951.7,0.4647]
[1758864835970,1.87636085,3951.8,3951.7,1.0129]
[1758864836572,1.87636085,3951.8,3951.7,0.6812]
[1758864836870,1.87636085,3951.8,3951.7,1.0129]
[1758864837567,1.87636085,3951.8,3951.7,0.6812]
[1758864838975,1.87636085,3951.8,3951.7,1.0129]
[1758864839466,1.87636085,3951.8,3951.7,0.4647]
[1758864839769,1.87636085,3951.8,3951.7,0.7964]
[1758864839970,1.87636085,3951.8,3951.7,1.0129]
[1758864840371,1.68776085,3951.8,3951.7,1.0129]
[1758864840570,1.91326085,3951.8,3951.7,1.0129]
[1758864840772,1.91326085,3951.8,3951.7,0.7569]
[1758864841077,1.91326085,3951.8,3951.7,0.256]
[1758864841467,2.46102873,3951.8,3951.5,0.45523]
[1758864841765,0.335,3951.3,3951.2,3.2078]
[1758864841973,3.0396217,3951.3,3951.2,3.2078]
[1758864842166,3.58749151,3951.3,3951.2,3.2078]
[1758864842466,3.58749151,3951.3,3951.1,0.256]
[1758864842769,1.33482527,3951.2,3951.1,0.256]
[1758864842973,0.7869,3950.8,3950.7,3.4638]
[1758864843162,1.91326085,3950.8,3950.7,3.687]
[1758864844274,1.91326085,3950.8,3950.7,4.2342]
[1758864845363,0.3321,3951.2,3951.1,0.45529]
[1758864845569,0.2082,3951.5,3951.4,1.22826]
[1758864845769,1.33456085,3951.5,3951.4,1.22826]
[1758864845974,1.66666085,3951.5,3951.4,1.22826]
[1758864846170,2.00456085,3951.5,3951.4,0.773]
[1758864846474,2.55248212,3951.5,3951.2,0.45528]
[1758864846774,2.55248212,3951.5,3951.3,0.45526]
[1758864846775,0.7485,3951.4,3951.3,0.45526]